[Event "*** Titled Tuesday Blitz"]
[Site "Chess.com"]
[Date "2020.04.21"]
[Round "6"]
[White "ViktoriyaTarasova"]
[Black "PetrolulSah"]
[Result "1-0"]
[WhiteElo "2444"]
[BlackElo "2213"]
[TimeControl "180+1"]
[EndTime "11:09:40 PDT"]
[Termination "ViktoriyaTarasova won by resignation"]

1. d4 {[%clk 0:03:00.9]} 1... d5 {[%clk 0:02:53.4]} 2. c4 {[%clk 0:03:00.7]}
2... c6 {[%clk 0:02:52.8]} 3. Nf3 {[%clk 0:03:00]} 3... Nf6 {[%clk 0:02:52.4]}
4. Nc3 {[%clk 0:03:00.1]} 4... dxc4 {[%clk 0:02:51.8]} 5. a4 {[%clk 0:02:59.4]}
5... Bf5 {[%clk 0:02:49.9]} 6. Ne5 {[%clk 0:02:58.9]} 6... e6 {[%clk 0:02:48.3]}
7. f3 {[%clk 0:02:58.2]} 7... Bb4 {[%clk 0:02:48.2]} 8. Kf2 {[%clk 0:02:57.7]}
8... Nbd7 {[%clk 0:02:38.2]} 9. Nxc4 {[%clk 0:02:55.9]} 9... Nb6 {[%clk
0:02:32.2]} 10. Ne5 {[%clk 0:02:54.8]} 10... c5 {[%clk 0:02:30.9]} 11. e4 {[%clk
0:02:51.4]} 11... Bg6 {[%clk 0:02:23]} 12. Na2 {[%clk 0:02:46.5]} 12... a5
{[%clk 0:02:15.4]} 13. Bb5+ {[%clk 0:02:44.2]} 13... Kf8 {[%clk 0:02:13.1]} 14.
Nxb4 {[%clk 0:02:40]} 14... cxb4 {[%clk 0:02:11.4]} 15. Bg5 {[%clk 0:02:38.1]}
15... h6 {[%clk 0:02:10.7]} 16. Be3 {[%clk 0:02:30.5]} 16... Kg8 {[%clk
0:02:08]} 17. Nxg6 {[%clk 0:02:30.1]} 17... fxg6 {[%clk 0:02:07.5]} 18. d5
{[%clk 0:02:29.6]} 18... exd5 {[%clk 0:02:04.1]} 19. e5 {[%clk 0:02:27.1]} 19...
Nfd7 {[%clk 0:01:52.6]} 20. e6 {[%clk 0:02:14.5]} 20... Nf6 {[%clk 0:01:47.6]}
21. Qd4 {[%clk 0:02:13.3]} 21... Nc4 {[%clk 0:01:40.3]} 22. Bxc4 {[%clk
0:02:11.2]} 22... dxc4 {[%clk 0:01:40.1]} 23. Qxc4 {[%clk 0:02:11.8]} 23... Qd5
{[%clk 0:01:18.8]} 24. Qxd5 {[%clk 0:02:02.4]} 24... Nxd5 {[%clk 0:01:18.5]} 25.
Bd4 {[%clk 0:02:03]} 25... Kh7 {[%clk 0:01:13.4]} 26. Rhe1 {[%clk 0:02:02.6]}
26... Rhe8 {[%clk 0:01:12.7]} 27. g3 {[%clk 0:01:54.6]} 27... Rad8 {[%clk
0:01:08.8]} 28. Bc5 {[%clk 0:01:46]} 28... b6 {[%clk 0:01:04]} 29. Bd4 {[%clk
0:01:38.7]} 29... Rd6 {[%clk 0:01:01.8]} 30. Re5 {[%clk 0:01:20.5]} 30... Rexe6
{[%clk 0:00:55.3]} 31. Rae1 {[%clk 0:01:20.3]} 31... Rxe5 {[%clk 0:00:53.9]} 32.
Bxe5 {[%clk 0:01:19.3]} 32... Rc6 {[%clk 0:00:51.1]} 33. Re2 {[%clk 0:01:19.2]}
33... b3 {[%clk 0:00:48.8]} 34. Bd4 {[%clk 0:01:13.1]} 34... Rc4 {[%clk
0:00:47.3]} 35. Be5 {[%clk 0:01:11]} 35... Rxa4 {[%clk 0:00:32.4]} 36. Rd2
{[%clk 0:01:10.5]} 36... Nf6 {[%clk 0:00:25.5]} 37. Rd6 {[%clk 0:01:09]} 37...
Rc4 {[%clk 0:00:23.8]} 38. Rxb6 {[%clk 0:01:06.3]} 38... Rc2+ {[%clk 0:00:23.7]}
39. Kg1 {[%clk 0:01:03.2]} 39... a4 {[%clk 0:00:23.4]} 40. Ra6 {[%clk
0:00:55.4]} 40... Rc4 {[%clk 0:00:22.8]} 41. Ra7 {[%clk 0:00:52.9]} 41... Kg8
{[%clk 0:00:22.5]} 42. Kf2 {[%clk 0:00:44.1]} 42... g5 {[%clk 0:00:15.8]} 43. h3
{[%clk 0:00:39.6]} 43... Rc5 {[%clk 0:00:14.7]} 44. Bd4 {[%clk 0:00:36.6]} 44...
Rc4 {[%clk 0:00:14.2]} 45. Be5 {[%clk 0:00:36]} 45... Rc5 {[%clk 0:00:14.1]} 46.
f4 {[%clk 0:00:35.4]} 46... gxf4 {[%clk 0:00:13.3]} 47. gxf4 {[%clk 0:00:36]}
47... Nh5 {[%clk 0:00:12.5]} 48. Ke3 {[%clk 0:00:31.6]} 48... Rc2 {[%clk
0:00:11.6]} 49. Rxa4 {[%clk 0:00:29.4]} 49... Rh2 {[%clk 0:00:11.4]} 50. Ke4
{[%clk 0:00:24.1]} 50... Rxh3 {[%clk 0:00:11.6]} 51. Ra8+ {[%clk 0:00:23.5]}
51... Kh7 {[%clk 0:00:11.7]} 52. Ra7 {[%clk 0:00:23.5]} 52... Kg6 {[%clk
0:00:11.8]} 53. f5+ {[%clk 0:00:20.3]} 53... Kh7 {[%clk 0:00:10.3]} 54. f6
{[%clk 0:00:19.7]} 54... Rh4+ {[%clk 0:00:09.9]} 55. Kd5 {[%clk 0:00:19]} 55...
Nxf6+ {[%clk 0:00:06.5]} 56. Bxf6 {[%clk 0:00:18.3]} 56... Rh5+ {[%clk
0:00:06.8]} 57. Ke6 {[%clk 0:00:18]} 57... Rc5 {[%clk 0:00:03.8]} 58. Rxg7+
{[%clk 0:00:18.3]} 58... Kh8 {[%clk 0:00:04.1]} 59. Rc7+ {[%clk 0:00:18.3]} 1-0

[Event "*** Titled Tuesday Blitz"]
[Site "Chess.com"]
[Date "2020.04.21"]
[Round "6"]
[White "CMS13"]
[Black "MichailovM"]
[Result "1/2-1/2"]
[WhiteElo "2131"]
[BlackElo "2285"]
[TimeControl "180+1"]
[EndTime "11:09:40 PDT"]
[Termination "Game drawn - insufficient material"]

1. e4 {[%clk 0:03:00.9]} 1... c5 {[%clk 0:02:59]} 2. Nc3 {[%clk 0:02:58.4]} 2...
Nc6 {[%clk 0:02:57.8]} 3. Bb5 {[%clk 0:02:57.4]} 3... g6 {[%clk 0:02:56.7]} 4.
Bxc6 {[%clk 0:02:57]} 4... dxc6 {[%clk 0:02:57]} 5. d3 {[%clk 0:02:57.9]} 5...
e5 {[%clk 0:02:55.3]} 6. f4 {[%clk 0:02:57.3]} 6... exf4 {[%clk 0:02:47.9]} 7.
Bxf4 {[%clk 0:02:56.9]} 7... Bg7 {[%clk 0:02:47.9]} 8. Nf3 {[%clk 0:02:57]} 8...
Ne7 {[%clk 0:02:46.8]} 9. O-O {[%clk 0:02:56.8]} 9... O-O {[%clk 0:02:47.5]} 10.
Qe1 {[%clk 0:02:55.5]} 10... Bg4 {[%clk 0:02:19.2]} 11. Qh4 {[%clk 0:02:52.6]}
11... Bxf3 {[%clk 0:02:14.1]} 12. Rxf3 {[%clk 0:02:52]} 12... Qd7 {[%clk
0:02:10.2]} 13. Bg5 {[%clk 0:02:36.3]} 13... Rae8 {[%clk 0:01:17.7]} 14. Re1
{[%clk 0:02:26.3]} 14... Nc8 {[%clk 0:01:09.5]} 15. e5 {[%clk 0:01:45.8]} 15...
Rxe5 {[%clk 0:01:01.1]} 16. Rxe5 {[%clk 0:01:38.2]} 16... Bxe5 {[%clk 0:01:02]}
17. Ne4 {[%clk 0:01:36.1]} 17... f5 {[%clk 0:00:57.7]} 18. Nxc5 {[%clk
0:01:30.4]} 18... Qd4+ {[%clk 0:00:45.7]} 19. Qxd4 {[%clk 0:01:29.2]} 19...
Bxd4+ {[%clk 0:00:46.6]} 20. Be3 {[%clk 0:01:28.8]} 20... Bxe3+ {[%clk
0:00:22.5]} 21. Rxe3 {[%clk 0:01:29.7]} 21... Nd6 {[%clk 0:00:23.4]} 22. Re7
{[%clk 0:01:24.3]} 22... Rf7 {[%clk 0:00:23.7]} 23. Rxf7 {[%clk 0:01:19.3]}
23... Kxf7 {[%clk 0:00:24.6]} 24. Kf2 {[%clk 0:01:18.6]} 24... b6 {[%clk
0:00:25]} 25. Nb3 {[%clk 0:01:11.5]} 25... c5 {[%clk 0:00:25.4]} 26. Nd2 {[%clk
0:01:11.2]} 26... Ke6 {[%clk 0:00:25.6]} 27. Ke3 {[%clk 0:01:09.2]} 27... Nf7
{[%clk 0:00:19.6]} 28. g3 {[%clk 0:01:09.6]} 28... Kd5 {[%clk 0:00:19.1]} 29.
Nf3 {[%clk 0:01:09.6]} 29... h6 {[%clk 0:00:12]} 30. c3 {[%clk 0:01:09.9]} 30...
g5 {[%clk 0:00:12.2]} 31. a4 {[%clk 0:01:06.8]} 31... Nd6 {[%clk 0:00:08.3]} 32.
h4 {[%clk 0:01:06.5]} 32... g4 {[%clk 0:00:06]} 33. Ne1 {[%clk 0:01:04.5]} 33...
c4 {[%clk 0:00:06.1]} 34. Ng2 {[%clk 0:00:55.5]} 34... cxd3 {[%clk 0:00:06.3]}
35. Nf4+ {[%clk 0:00:54.5]} 35... Kc4 {[%clk 0:00:04.4]} 36. Nxd3 {[%clk
0:00:52.8]} 36... Ne4 {[%clk 0:00:04.9]} 37. Ne5+ {[%clk 0:00:49.6]} 37... Kb3
{[%clk 0:00:05.2]} 38. Kf4 {[%clk 0:00:46]} 38... Nd6 {[%clk 0:00:05.6]} 39. Nd3
{[%clk 0:00:44.9]} 39... Kc2 {[%clk 0:00:04.1]} 40. Nb4+ {[%clk 0:00:42.2]}
40... Kxb2 {[%clk 0:00:04.5]} 41. Nc6 {[%clk 0:00:42.3]} 41... a6 {[%clk
0:00:03.7]} 42. c4 {[%clk 0:00:38]} 42... Kc3 {[%clk 0:00:02.4]} 43. a5 {[%clk
0:00:36.1]} 43... bxa5 {[%clk 0:00:02.7]} 44. c5 {[%clk 0:00:34.1]} 44... Ne4
{[%clk 0:00:01.2]} 45. Nxa5 {[%clk 0:00:33.6]} 45... Nxc5 {[%clk 0:00:02.1]} 46.
Kxf5 {[%clk 0:00:33.9]} 46... Kb4 {[%clk 0:00:02.5]} 47. Nc6+ {[%clk 0:00:33.6]}
47... Kb5 {[%clk 0:00:03.4]} 48. Nd4+ {[%clk 0:00:33.7]} 48... Kc4 {[%clk
0:00:04.3]} 49. Nc2 {[%clk 0:00:33.8]} 49... Kd3 {[%clk 0:00:04.2]} 50. Nb4+
{[%clk 0:00:33.6]} 50... Kc4 {[%clk 0:00:05.1]} 51. Nxa6 {[%clk 0:00:30.3]}
51... Nxa6 {[%clk 0:00:06]} 52. Kxg4 {[%clk 0:00:30.7]} 52... Kd5 {[%clk
0:00:06.9]} 53. Kh5 {[%clk 0:00:31]} 53... Ke6 {[%clk 0:00:07.8]} 54. Kxh6
{[%clk 0:00:31.4]} 54... Kf7 {[%clk 0:00:08]} 55. g4 {[%clk 0:00:31.8]} 55...
Nc5 {[%clk 0:00:08.9]} 56. g5 {[%clk 0:00:32.2]} 56... Ne6 {[%clk 0:00:09.8]}
57. g6+ {[%clk 0:00:31.6]} 57... Kg8 {[%clk 0:00:10]} 58. Kh5 {[%clk 0:00:24.2]}
58... Kg7 {[%clk 0:00:10.4]} 59. Kg4 {[%clk 0:00:23.9]} 59... Kxg6 {[%clk
0:00:11.3]} 60. h5+ {[%clk 0:00:24.4]} 60... Kh6 {[%clk 0:00:12.2]} 61. Kf5
{[%clk 0:00:24.4]} 61... Ng7+ {[%clk 0:00:13.1]} 62. Kg4 {[%clk 0:00:24.4]}
62... Nxh5 {[%clk 0:00:14]} 1/2-1/2

[Event "*** Titled Tuesday Blitz"]
[Site "Chess.com"]
[Date "2020.04.21"]
[Round "6"]
[White "cholzan"]
[Black "canhhuan"]
[Result "0-1"]
[WhiteElo "2490"]
[BlackElo "2660"]
[TimeControl "180+1"]
[EndTime "11:09:41 PDT"]
[Termination "canhhuan won by checkmate"]

1. d4 {[%clk 0:03:00.7]} 1... Nf6 {[%clk 0:02:58.6]} 2. c4 {[%clk 0:03:00.7]}
2... g6 {[%clk 0:02:58.3]} 3. Nc3 {[%clk 0:03:00.6]} 3... Bg7 {[%clk 0:02:58]}
4. e4 {[%clk 0:03:00.9]} 4... O-O {[%clk 0:02:58.4]} 5. Nf3 {[%clk 0:03:01.5]}
5... d6 {[%clk 0:02:57.7]} 6. Be2 {[%clk 0:03:02]} 6... Bg4 {[%clk 0:02:56.7]}
7. O-O {[%clk 0:03:02.1]} 7... Nfd7 {[%clk 0:02:55.2]} 8. Be3 {[%clk 0:03:00.7]}
8... c5 {[%clk 0:02:41.3]} 9. d5 {[%clk 0:03:00.3]} 9... Na6 {[%clk 0:02:40.7]}
10. h3 {[%clk 0:02:59.5]} 10... Bxf3 {[%clk 0:02:38.4]} 11. Bxf3 {[%clk
0:03:00.4]} 11... Nc7 {[%clk 0:02:38.2]} 12. Be2 {[%clk 0:03:00.2]} 12... a6
{[%clk 0:02:37.6]} 13. a4 {[%clk 0:03:00.3]} 13... Re8 {[%clk 0:02:36.5]} 14.
Qd2 {[%clk 0:02:59]} 14... e6 {[%clk 0:02:22.9]} 15. dxe6 {[%clk 0:02:57.1]}
15... Nxe6 {[%clk 0:02:22.3]} 16. Qxd6 {[%clk 0:02:55.3]} 16... Nd4 {[%clk
0:02:17.7]} 17. Bg4 {[%clk 0:02:53.2]} 17... Ne5 {[%clk 0:02:12.1]} 18. Qxc5
{[%clk 0:02:44.9]} 18... Nb3 {[%clk 0:02:02.1]} 19. Qd5 {[%clk 0:02:38.8]} 19...
Nxa1 {[%clk 0:01:59.1]} 20. Rxa1 {[%clk 0:02:39.7]} 20... Qc7 {[%clk 0:01:41.9]}
21. c5 {[%clk 0:02:28.4]} 21... Rad8 {[%clk 0:01:38.5]} 22. Qb3 {[%clk
0:02:28.2]} 22... Nxg4 {[%clk 0:01:13.9]} 23. hxg4 {[%clk 0:02:29.1]} 23... Rd3
{[%clk 0:01:10.6]} 24. Qc2 {[%clk 0:02:23.6]} 24... Rxe3 {[%clk 0:01:09]} 25.
Nd5 {[%clk 0:02:21.8]} 25... Qe5 {[%clk 0:00:36.6]} 26. Nxe3 {[%clk 0:02:21.4]}
26... Qxe4 {[%clk 0:00:35.4]} 27. Qxe4 {[%clk 0:02:20]} 27... Rxe4 {[%clk
0:00:36.3]} 28. Rd1 {[%clk 0:01:58.4]} 28... Bxb2 {[%clk 0:00:33.3]} 29. Rd7
{[%clk 0:01:57.9]} 29... Bd4 {[%clk 0:00:24.1]} 30. Nd5 {[%clk 0:01:57.4]} 30...
Re1+ {[%clk 0:00:18.5]} 31. Kh2 {[%clk 0:01:57.3]} 31... Bxf2 {[%clk 0:00:17.5]}
32. g5 {[%clk 0:01:52.8]} 32... Kg7 {[%clk 0:00:16.7]} 33. Rd8 {[%clk
0:01:46.6]} 33... Bh4 {[%clk 0:00:14.6]} 34. Rd7 {[%clk 0:01:40.4]} 34... Bxg5
{[%clk 0:00:13.8]} 35. Rxb7 {[%clk 0:01:40.3]} 35... Rc1 {[%clk 0:00:13.7]} 36.
Rc7 {[%clk 0:01:38.1]} 36... Rd1 {[%clk 0:00:13.6]} 37. Rd7 {[%clk 0:01:38.3]}
37... Rc1 {[%clk 0:00:13.6]} 38. Nc7 {[%clk 0:01:36.5]} 38... Bf4+ {[%clk
0:00:12.4]} 39. Kh3 {[%clk 0:01:36.3]} 39... Bxc7 {[%clk 0:00:12]} 40. Rxc7
{[%clk 0:01:36.8]} 40... Rc4 {[%clk 0:00:12.6]} 41. a5 {[%clk 0:01:36.3]} 41...
Ra4 {[%clk 0:00:12.5]} 42. c6 {[%clk 0:01:34.8]} 42... Rxa5 {[%clk 0:00:12.5]}
43. Rd7 {[%clk 0:01:33.9]} 43... Rc5 {[%clk 0:00:12.5]} 44. c7 {[%clk
0:01:33.9]} 44... a5 {[%clk 0:00:12.6]} 45. g3 {[%clk 0:01:31.4]} 45... a4
{[%clk 0:00:12.6]} 46. Rd4 {[%clk 0:01:31.4]} 46... Rxc7 {[%clk 0:00:12.2]} 47.
Rxa4 {[%clk 0:01:31.8]} 47... Rc5 {[%clk 0:00:12.3]} 48. Ra7 {[%clk 0:01:31.6]}
48... h5 {[%clk 0:00:12.2]} 49. Rb7 {[%clk 0:01:30.5]} 49... g5 {[%clk 0:00:12]}
50. Rb6 {[%clk 0:01:28.6]} 50... f6 {[%clk 0:00:11.7]} 51. Rb7+ {[%clk
0:01:28.1]} 51... Kg6 {[%clk 0:00:11.6]} 52. Rb8 {[%clk 0:01:28.2]} 52... Rc2
{[%clk 0:00:11.2]} 53. Rg8+ {[%clk 0:01:27.6]} 53... Kf5 {[%clk 0:00:10.6]} 54.
g4+ {[%clk 0:01:25]} 54... hxg4+ {[%clk 0:00:10.2]} 55. Kg3 {[%clk 0:01:25.4]}
55... Rc3+ {[%clk 0:00:10.3]} 56. Kg2 {[%clk 0:01:25.8]} 56... Kf4 {[%clk
0:00:09.6]} 57. Ra8 {[%clk 0:01:26.2]} 57... Kf5 {[%clk 0:00:07.9]} 58. Ra5+
{[%clk 0:01:24.9]} 58... Kg6 {[%clk 0:00:07.6]} 59. Kf2 {[%clk 0:01:25.3]} 59...
g3+ {[%clk 0:00:07.3]} 60. Kg2 {[%clk 0:01:25.3]} 60... f5 {[%clk 0:00:07.1]}
61. Ra8 {[%clk 0:01:25.2]} 61... Kh5 {[%clk 0:00:06.4]} 62. Kh3 {[%clk
0:01:25.4]} 62... g4+ {[%clk 0:00:04.6]} 63. Kg2 {[%clk 0:01:24.7]} 63... Kg5
{[%clk 0:00:05.1]} 64. Ra4 {[%clk 0:01:23.7]} 64... Kh4 {[%clk 0:00:04.5]} 65.
Ra8 {[%clk 0:01:22.9]} 65... Rc2+ {[%clk 0:00:04.1]} 66. Kg1 {[%clk 0:01:23.2]}
66... f4 {[%clk 0:00:04.1]} 67. Rh8+ {[%clk 0:01:22.5]} 67... Kg5 {[%clk
0:00:04.5]} 68. Rg8+ {[%clk 0:01:22.9]} 68... Kf5 {[%clk 0:00:05.4]} 69. Rg7
{[%clk 0:01:22.4]} 69... Ke5 {[%clk 0:00:06.3]} 70. Rxg4 {[%clk 0:01:22.5]}
70... Ke4 {[%clk 0:00:06.6]} 71. Rg8 {[%clk 0:01:14.6]} 71... Kf3 {[%clk
0:00:07.5]} 72. Rc8 {[%clk 0:01:14.7]} 72... Rxc8 {[%clk 0:00:06.6]} 73. Kh1
{[%clk 0:01:15]} 73... Rc1# {[%clk 0:00:07.5]} 0-1

[Event "*** Titled Tuesday Blitz"]
[Site "Chess.com"]
[Date "2020.04.21"]
[Round "6"]
[White "Olga_Zhuravleva"]
[Black "Kumi29"]
[Result "0-1"]
[WhiteElo "2205"]
[BlackElo "2387"]
[TimeControl "180+1"]
[EndTime "11:09:42 PDT"]
[Termination "Kumi29 won by resignation"]

1. e4 {[%clk 0:03:00.9]} 1... e5 {[%clk 0:02:59]} 2. Nf3 {[%clk 0:03:01]} 2...
Nc6 {[%clk 0:02:59.6]} 3. Bc4 {[%clk 0:03:01.5]} 3... Nf6 {[%clk 0:02:59.5]} 4.
Ng5 {[%clk 0:03:01]} 4... Bc5 {[%clk 0:02:59.4]} 5. Bxf7+ {[%clk 0:02:58.6]}
5... Ke7 {[%clk 0:02:59.7]} 6. Bd5 {[%clk 0:02:58.5]} 6... Qe8 {[%clk
0:02:55.9]} 7. c3 {[%clk 0:02:48.4]} 7... d6 {[%clk 0:02:55.6]} 8. Bxc6 {[%clk
0:02:42.2]} 8... Qxc6 {[%clk 0:02:23.8]} 9. d4 {[%clk 0:02:39.5]} 9... exd4
{[%clk 0:02:24]} 10. cxd4 {[%clk 0:02:39.2]} 10... Bb4+ {[%clk 0:02:21.3]} 11.
Bd2 {[%clk 0:02:39.6]} 11... Nxe4 {[%clk 0:02:16.7]} 12. Bxb4 {[%clk 0:02:16.4]}
12... Nxg5 {[%clk 0:02:13.3]} 13. O-O {[%clk 0:02:15.7]} 13... Bh3 {[%clk
0:01:55.7]} 14. d5 {[%clk 0:02:08.8]} 14... Qc4 {[%clk 0:01:54.2]} 15. Re1+
{[%clk 0:01:54.9]} 15... Kd7 {[%clk 0:01:49]} 16. Bd2 {[%clk 0:01:39.3]} 16...
Qxd5 {[%clk 0:01:36.5]} 17. f3 {[%clk 0:00:54.9]} 17... Rhf8 {[%clk 0:01:33.4]}
18. Nc3 {[%clk 0:00:50]} 18... Qd4+ {[%clk 0:01:10]} 19. Be3 {[%clk 0:00:48.3]}
19... Qh4 {[%clk 0:01:10.1]} 20. Qa4+ {[%clk 0:00:35.4]} 20... Qxa4 {[%clk
0:01:09]} 21. Nxa4 {[%clk 0:00:36]} 21... Rf5 {[%clk 0:00:53.9]} 22. gxh3 {[%clk
0:00:23.8]} 22... Nxf3+ {[%clk 0:00:53.7]} 23. Kg2 {[%clk 0:00:23.6]} 23...
Nxe1+ {[%clk 0:00:54.6]} 24. Rxe1 {[%clk 0:00:22.8]} 24... Re8 {[%clk
0:00:54.6]} 25. Nc3 {[%clk 0:00:20.2]} 25... Rfe5 {[%clk 0:00:50.8]} 26. Kf2
{[%clk 0:00:20.7]} 26... d5 {[%clk 0:00:48]} 27. Bd2 {[%clk 0:00:19.7]} 27...
Rf5+ {[%clk 0:00:32.7]} 28. Kg3 {[%clk 0:00:18.9]} 28... d4 {[%clk 0:00:29.5]}
29. Ne4 {[%clk 0:00:15]} 29... Rfe5 {[%clk 0:00:26.4]} 30. Kf3 {[%clk
0:00:15.2]} 30... Rf8+ {[%clk 0:00:24]} 31. Kg3 {[%clk 0:00:14.4]} 31... h6
{[%clk 0:00:17.7]} 32. Bf4 {[%clk 0:00:13.9]} 32... Ref5 {[%clk 0:00:15.6]} 33.
Bd2 {[%clk 0:00:10.5]} 33... Rf3+ {[%clk 0:00:15.9]} 34. Kg2 {[%clk 0:00:10.2]}
34... b6 {[%clk 0:00:16.5]} 35. Ng3 {[%clk 0:00:09.8]} 35... Rf2+ {[%clk
0:00:16]} 36. Kg1 {[%clk 0:00:10]} 36... Rxd2 {[%clk 0:00:16.9]} 37. Re4 {[%clk
0:00:09.6]} 37... c5 {[%clk 0:00:16.6]} 38. Rg4 {[%clk 0:00:08.5]} 38... g5
{[%clk 0:00:17]} 39. Ne4 {[%clk 0:00:08.4]} 39... Rxb2 {[%clk 0:00:16.2]} 40. h4
{[%clk 0:00:09.1]} 40... Rxa2 {[%clk 0:00:15.2]} 41. hxg5 {[%clk 0:00:09.1]}
41... hxg5 {[%clk 0:00:15.6]} 42. Rxg5 {[%clk 0:00:09.5]} 42... Rf4 {[%clk
0:00:11.9]} 43. Rg7+ {[%clk 0:00:08.8]} 43... Kc6 {[%clk 0:00:11.7]} 44. Rg6+
{[%clk 0:00:07.6]} 44... Kd5 {[%clk 0:00:10]} 45. Nf6+ {[%clk 0:00:07.4]} 45...
Kc4 {[%clk 0:00:09.5]} 46. Nd7 {[%clk 0:00:06.1]} 46... Re4 {[%clk 0:00:07.8]}
47. Rf6 {[%clk 0:00:06.3]} 47... Re1+ {[%clk 0:00:07]} 48. Rf1 {[%clk 0:00:07]}
48... Rxf1+ {[%clk 0:00:07.9]} 49. Kxf1 {[%clk 0:00:07.6]} 49... Rxh2 {[%clk
0:00:08.8]} 50. Kg1 {[%clk 0:00:07.4]} 50... Rh5 {[%clk 0:00:08.4]} 51. Kf2
{[%clk 0:00:06.2]} 51... Rf5+ {[%clk 0:00:08.6]} 52. Ke2 {[%clk 0:00:06.2]}
52... Kd5 {[%clk 0:00:09.3]} 53. Nb8 {[%clk 0:00:05.5]} 53... b5 {[%clk
0:00:08.5]} 54. Na6 {[%clk 0:00:05.2]} 54... Kc6 {[%clk 0:00:08.5]} 55. Nb8+
{[%clk 0:00:04.8]} 55... Kc7 {[%clk 0:00:08.9]} 56. Na6+ {[%clk 0:00:04.8]}
56... Kb7 {[%clk 0:00:09.5]} 57. Nb4 {[%clk 0:00:04.1]} 57... cxb4 {[%clk
0:00:09.4]} 0-1

[Event "*** Titled Tuesday Blitz"]
[Site "Chess.com"]
[Date "2020.04.21"]
[Round "6"]
[White "gena217"]
[Black "Raja3401"]
[Result "1/2-1/2"]
[WhiteElo "2898"]
[BlackElo "2708"]
[TimeControl "180+1"]
[EndTime "11:09:44 PDT"]
[Termination "Game drawn by repetition"]

1. e4 {[%clk 0:03:00.9]} 1... c5 {[%clk 0:03:00.1]} 2. Nf3 {[%clk 0:03:01.3]}
2... d6 {[%clk 0:02:57.8]} 3. c3 {[%clk 0:03:00.7]} 3... Nf6 {[%clk 0:02:57.8]}
4. h3 {[%clk 0:03:01.2]} 4... Nc6 {[%clk 0:02:54.6]} 5. Bd3 {[%clk 0:03:01.2]}
5... g6 {[%clk 0:02:51.2]} 6. Bc2 {[%clk 0:03:01.2]} 6... Bg7 {[%clk 0:02:51.3]}
7. O-O {[%clk 0:03:01.9]} 7... O-O {[%clk 0:02:51.3]} 8. d4 {[%clk 0:03:02.6]}
8... cxd4 {[%clk 0:02:42.4]} 9. cxd4 {[%clk 0:03:03.5]} 9... d5 {[%clk
0:02:42.8]} 10. e5 {[%clk 0:03:02.7]} 10... Ne4 {[%clk 0:02:43.1]} 11. Nc3
{[%clk 0:03:03.4]} 11... Bf5 {[%clk 0:02:40.3]} 12. Ne2 {[%clk 0:02:59]} 12...
f6 {[%clk 0:02:35.9]} 13. exf6 {[%clk 0:02:54.9]} 13... Bxf6 {[%clk 0:02:35.6]}
14. Nf4 {[%clk 0:02:39.9]} 14... Kh8 {[%clk 0:02:25.3]} 15. Be3 {[%clk
0:02:39.4]} 15... Rc8 {[%clk 0:02:16.4]} 16. Rc1 {[%clk 0:02:38.4]} 16... Qd6
{[%clk 0:01:48.8]} 17. Nd3 {[%clk 0:02:36.2]} 17... Qd8 {[%clk 0:01:37.3]} 18.
Ba4 {[%clk 0:02:30.3]} 18... Nd6 {[%clk 0:01:32.4]} 19. Bxc6 {[%clk 0:02:26]}
19... Rxc6 {[%clk 0:01:32.5]} 20. Rxc6 {[%clk 0:02:24.9]} 20... bxc6 {[%clk
0:01:33.4]} 21. Nde5 {[%clk 0:02:19.5]} 21... Nc4 {[%clk 0:01:33.1]} 22. Nxc4
{[%clk 0:01:50.1]} 22... dxc4 {[%clk 0:01:34]} 23. Ne5 {[%clk 0:01:50.6]} 23...
c5 {[%clk 0:01:25.6]} 24. Re1 {[%clk 0:01:44.6]} 24... Qd5 {[%clk 0:01:22.2]}
25. Nf3 {[%clk 0:01:16.3]} 25... Rd8 {[%clk 0:01:18.9]} 26. Qc1 {[%clk
0:01:04.8]} 26... cxd4 {[%clk 0:01:14.9]} 27. Bg5 {[%clk 0:01:05.3]} 27... d3
{[%clk 0:01:12.5]} 28. Bxf6+ {[%clk 0:01:02]} 28... exf6 {[%clk 0:01:12.4]} 29.
Qc3 {[%clk 0:01:02]} 29... Qd6 {[%clk 0:01:08]} 30. Nd2 {[%clk 0:01:00.5]} 30...
Qd4 {[%clk 0:01:00.9]} 31. Re8+ {[%clk 0:00:54]} 31... Kg7 {[%clk 0:00:58.1]}
32. Rxd8 {[%clk 0:00:51.6]} 32... Qxd8 {[%clk 0:00:58.3]} 33. Qxc4 {[%clk
0:00:52.1]} 33... Qa5 {[%clk 0:00:53.8]} 34. b4 {[%clk 0:00:46.4]} 34... Qe5
{[%clk 0:00:53.7]} 35. Nf3 {[%clk 0:00:41.6]} 35... Qa1+ {[%clk 0:00:36.8]} 36.
Kh2 {[%clk 0:00:41.2]} 36... Qb2 {[%clk 0:00:36.9]} 37. Qc7+ {[%clk 0:00:37.8]}
37... Kg8 {[%clk 0:00:34.5]} 38. Qb8+ {[%clk 0:00:34.2]} 38... Kg7 {[%clk
0:00:33.7]} 39. Qxa7+ {[%clk 0:00:34.6]} 39... Kg8 {[%clk 0:00:32.5]} 40. a3
{[%clk 0:00:25.7]} 40... Be4 {[%clk 0:00:30.6]} 41. Qb8+ {[%clk 0:00:25]} 41...
Kg7 {[%clk 0:00:29.2]} 42. Qc7+ {[%clk 0:00:25.2]} 42... Kf8 {[%clk 0:00:18.1]}
43. Qd8+ {[%clk 0:00:18.9]} 43... Kf7 {[%clk 0:00:17.7]} 44. Qd7+ {[%clk
0:00:19.3]} 44... Kf8 {[%clk 0:00:17.9]} 45. Qc8+ {[%clk 0:00:17]} 45... Kg7
{[%clk 0:00:17.2]} 46. Qc7+ {[%clk 0:00:17]} 46... Kf8 {[%clk 0:00:16.3]} 47.
Qc5+ {[%clk 0:00:14.8]} 47... Ke8 {[%clk 0:00:10.4]} 48. Qe3 {[%clk 0:00:11.3]}
48... f5 {[%clk 0:00:10.5]} 49. Nd2 {[%clk 0:00:11.3]} 49... Qxa3 {[%clk
0:00:09.8]} 50. Nxe4 {[%clk 0:00:11.3]} 50... fxe4 {[%clk 0:00:10.7]} 51. Qxe4+
{[%clk 0:00:12.2]} 51... Kf7 {[%clk 0:00:11.1]} 52. Qd5+ {[%clk 0:00:12.2]}
52... Ke7 {[%clk 0:00:10.6]} 53. Qe5+ {[%clk 0:00:10.3]} 53... Kd7 {[%clk
0:00:10.2]} 54. Qd5+ {[%clk 0:00:10.9]} 54... Kc7 {[%clk 0:00:10.5]} 55. Qc5+
{[%clk 0:00:11.3]} 55... Kd7 {[%clk 0:00:10.9]} 56. Qd5+ {[%clk 0:00:09.9]}
56... Kc7 {[%clk 0:00:11.3]} 57. Qc5+ {[%clk 0:00:09.3]} 57... Kd7 {[%clk
0:00:11.6]} 58. Qd5+ {[%clk 0:00:04.8]} 1/2-1/2